fUSD/lending_fUSD_20240117
["ID","MTS","AMOUNT","RATE_DAILY","PERIOD"]
[311840470,1705449610939,250.0,0.000205,2]
[311840471,1705449614931,537.42,0.00021739,2]
[311840472,1705449615177,537.42,0.00021853,2]
[311840473,1705449615334,537.42,0.00021968,2]
[311840474,1705449676729,-155.0,0.00022015,2]
[311840475,1705449676762,-516.29328463,0.00022016,2]
[311840476,1705449676794,-156.4,0.00022052,2]
[311840477,1705449676822,-537.42,0.00022082,2]
[311840478,1705449676849,-204.0,0.00022181,2]
[311840479,1705449676875,-156.4,0.00022196,2]
[311840480,1705449676903,-537.42,0.00022197,2]
[311840481,1705449676934,-537.42,0.00022311,2]
[311840482,1705449676956,-806.34523216,0.00022328,2]
[311840483,1705449676985,-156.4,0.0002234,2]
[311840484,1705449677013,-157.1126956,0.00022358,2]
[311840485,1705449677039,-157.11269558,0.00022367,2]
[311840486,1705449677071,-157.11269558,0.00022376,2]
[311840487,1705449677104,-157.11269558,0.00022385,2]
[311840488,1705449677135,-157.11269558,0.00022394,2]
[311840489,1705449677160,-157.11269558,0.00022403,2]
[311840490,1705449677198,-157.11269558,0.00022413,2]
[311840491,1705449677235,-157.11269558,0.00022422,2]
[311840492,1705449677263,-537.42,0.00022425,2]
[311840493,1705449677298,-157.11269558,0.00022431,2]
[311840494,1705449677325,-157.11269558,0.0002244,2]
[311840495,1705449677355,-157.11269558,0.00022449,2]
[311840496,1705449677385,-729.7838,0.00022456,2]
[311840497,1705449677418,-2500.0,0.00022456,2]
[311840498,1705449677451,-169.22902364,0.00022458,2]
[311840499,1705449677489,-512.76201994,0.00022458,2]
[311840500,1705449677521,-202.03991987,0.00022458,2]
[311840501,1705449677553,-157.11269558,0.00022458,2]
[311840502,1705449677592,-156.4,0.00022483,2]
[311840503,1705449677634,-6797.55,0.00022483,2]
[311840504,1705449677667,-537.42,0.0002254,2]
[311840505,1705449677708,-285.27830433,0.00022554,2]
[311840506,1705449677736,-3067.86,0.00022555,2]
[311840507,1705449677775,-5844.80606845,0.00022556,2]
[311840508,1705449763097,866.37,0.00021836,2]
[311840509,1705449827741,-155.0,0.0002218,2]
[311840510,1705449827779,-331.53647864,0.00022328,2]
[311840511,1705449827810,-178.80197064,0.00022456,2]
[311840512,1705449827835,-618.58828871,0.00022458,2]
[311840513,1705449827862,-341.84134662,0.00022458,2]
[311840514,1705449827888,-159.58006256,0.00022554,2]
[311840515,1705449827915,-774.12616541,0.00022555,2]
[311840516,1705449827942,-300.0,0.00022555,2]
[311840517,1705449827970,-5340.52568742,0.00022556,2]
[311840518,1705449845708,204.0,0.00021181,2]
[311840519,1705449856960,150.0,0.00021557,2]
[311840520,1705449904184,204.0,0.00021181,2]
[311840521,1705449917917,571.43,0.00021737,2]
[311840522,1705449936680,156.4,0.00021884,2]
[311840523,1705449970088,188.57,0.00021902,2]
[311840524,1705449991091,548.64,0.00019735,2]
[311840529,1705450179202,190.33,0.00021638,2]
[311840530,1705450201107,12117.0,0.0002199,2]
[311840531,1705450205003,204.0,0.0002152,2]
[311840559,1705450232043,-400.0,0.00021999,2]
[311840561,1705450232071,-148.64,0.00021999,2]
[311840562,1705450232081,-188.57,0.00022119,2]
[311840563,1705450232090,-81.208,0.00022169,2]
[311840564,1705450232102,-75.192,0.00022169,2]
[311840565,1705450232111,-225.29267651,0.00022229,4]
[311840566,1705450232122,-1249.51532349,0.000223,2]
[311840567,1705450232229,-435.2659414,0.000223,2]
[311840568,1705450232241,-13.94744002,0.00022336,2]
[311840569,1705450232254,-174.62255998,0.00022336,2]
[311840570,1705450232264,-205.98606242,0.00022356,2]
[311840571,1705450232322,-456.56200541,0.00022356,2]
[311840572,1705450232336,-2089.15,0.00022356,2]
[311840573,1705450232349,-215196.48350344,0.00022356,2]
[311840574,1705450235207,166.84,0.00021631,2]
[311840577,1705450238353,-52220.67112873,0.00022356,2]
[311840578,1705450238364,-2500.0,0.00022356,2]
[311840579,1705450238377,-420.61314653,0.00022356,2]
[311840580,1705450238399,-158.15556964,0.00022441,2]
[311840581,1705450238412,-156.4,0.00022454,2]
[311840582,1705450238424,-499.99,0.00022455,2]
[311840583,1705450238438,-449.02752096,0.00022455,2]
[311840584,1705450238449,-3148.15668721,0.00022455,2]
[311840585,1705450238468,-3681.17247904,0.00022455,2]
[311840586,1705450238479,-239728.8989,0.00022456,2]
[311840587,1705450238489,-1000.0,0.00022456,2]
[311840588,1705450238500,-1886.24976995,0.00022456,2]
[311840589,1705450238511,-706.12158377,0.00022456,2]
[311840590,1705450238521,-500.94210133,0.00022456,2]
[311840591,1705450238531,-178.80197064,0.00022456,2]
[311840592,1705450238543,-188.57,0.00022553,2]
[311840593,1705450238554,-1814633.65840987,0.00022555,3]
[311840594,1705450238572,-358202.66624692,0.00022555,3]
[311840595,1705450238584,-531859.06478116,0.00022556,2]
[311840596,1705450238597,-355683.85056266,0.00022556,2]
[311840597,1705450238607,-2951.77663867,0.00022556,2]
[311840598,1705450238618,-155.0,0.00022556,2]
[311840599,1705450238630,-338.40757311,0.00022556,2]
[311840600,1705450238643,-155.0855656,0.00022556,2]
[311840601,1705450238660,-1000.0,0.00022556,2]
[311840602,1705450238672,-1000.0,0.00022556,2]
[311840603,1705450238686,-1000.0,0.00022556,2]
[311840604,1705450238704,-1000.0,0.00022556,2]
[311840605,1705450238729,-1000.0,0.00022556,2]
[311840606,1705450238752,-1000.0,0.00022556,2]
[311840607,1705450238763,-1000.0,0.00022556,2]
[311840608,1705450238775,-1000.0,0.00022556,2]
[311840609,1705450238785,-1000.0,0.00022556,2]
[311840610,1705450238796,-1000.0,0.00022556,2]
[311840612,1705450238807,-1000.0,0.00022556,2]
[311840614,1705450238817,-1000.0,0.00022556,2]
[311840615,1705450238831,-1000.0,0.00022556,2]
[311840617,1705450238843,-1000.0,0.00022556,2]
[311840619,1705450238854,-1000.0,0.00022556,2]
[311840621,1705450238865,-1000.0,0.00022556,2]
[311840623,1705450238881,-825.8404659,0.00022556,2]
[311840625,1705450238892,-158.71685653,0.00022557,2]
[311840627,1705450238910,-10496.4407031,0.00022557,2]
[311840629,1705450238922,-72251.59296212,0.00022558,2]
[311840631,1705450238936,-951.26132272,0.00022558,2]
[311840634,1705450238954,-455.23866117,0.00022558,2]
[311840636,1705450238966,-350.26905264,0.00022558,2]
[311840638,1705450238985,-1279.14060691,0.00022558,2]
[311840644,1705450239044,-12948.76344407,0.00022558,2]
[311840646,1705450239057,-1949.38464044,0.00022558,2]
[311840653,1705450239124,-269.15168199,0.00022558,2]
[311840767,1705450240615,-5776.71300195,0.00022558,2]
[311840838,1705450241426,-301.57238638,0.00022558,2]
[311840859,1705450241672,-3194.72761637,0.00022558,2]
[311840873,1705450241829,-272.18462324,0.00022558,2]
[311840875,1705450241841,-178.80197064,0.00022562,2]
[311840877,1705450241853,-988.02137917,0.00022608,2]
[311840882,1705450241898,-531.94672996,0.00022608,2]
[311840884,1705450241908,-46.1140748,0.0002261,2]
[311840886,1705450241922,-108.8859252,0.0002261,2]
[311840888,1705450241932,-537.42,0.00022654,2]
[311840890,1705450241942,-178.80197064,0.00022668,2]
[311840892,1705450241958,-2225.36537301,0.00022732,2]
[311840994,1705450243100,-1780.95270064,0.00022732,2]
[311841075,1705450244028,-1028.736674,0.00022732,2]
[311841077,1705450244042,-4075.40325235,0.00022732,2]
[311841079,1705450244053,-156.4,0.00022739,2]
[311841081,1705450244063,-564.0,0.00022752,2]
[311841083,1705450244076,-159.0,0.00022766,2]
[311841085,1705450244086,-537.42,0.00022769,2]
[311841087,1705450244097,-152.66418,0.00022769,2]
[311841089,1705450244107,-188.57,0.0002277,2]
[311841091,1705450244119,-93.27206758,0.00022774,2]
[311841093,1705450244133,-85.52990306,0.00022774,2]
[311841095,1705450244147,-155.56865287,0.000228,2]
[311841097,1705450244157,-800.0,0.00022816,2]
[311841099,1705450244168,-4833.25904436,0.00022832,2]
[311841101,1705450244182,-325.39435214,0.00022832,2]
[311841112,1705450244304,-65581.29962628,0.00022832,2]
[311841114,1705450244319,-178.80197064,0.0002288,2]
[311841116,1705450244331,-537.42,0.00022883,2]
[311841117,1705450244343,-204.0,0.00022894,4]
[311841119,1705450244353,-5000.0,0.000229,2]
[311841121,1705450244363,-2658.2278,0.000229,2]
[311841123,1705450244374,-4928.7792,0.000229,2]
[311841125,1705450244391,-152.58632283,0.000229,2]
[311841126,1705450244401,-19840.06793638,0.0002298,2]
[311841128,1705450244414,-466.35169,0.0002298,2]
[311841130,1705450244428,-355.47183999,0.0002298,2]
[311841137,1705450244507,-988.0,0.0002298,2]
[311841139,1705450244624,-4172.78458315,0.0002298,2]
[311841140,1705450244637,-1866.9544394,0.0002298,2]
[311841142,1705450244760,-24013.60141825,0.0002298,2]
[311841143,1705450244773,-2581.95359998,0.0002298,2]
[311841186,1705450246282,-859.39536,0.0002298,2]
[311841190,1705450246344,-10071.47825366,0.0002298,2]
[311841197,1705450246580,-587.2050527,0.0002298,2]
[311841198,1705450246593,-435.0,0.0002298,2]
[311841199,1705450246611,-2505.12168228,0.0002298,2]
[311841200,1705450246623,-8279.69532402,0.0002298,2]
[311841201,1705450246644,-530.83132037,0.0002298,2]
[311841202,1705450246748,-479.96318635,0.0002298,2]
[311841203,1705450246814,-457.57599352,0.0002298,2]
[311841204,1705450246826,-630.11906993,0.0002298,2]
[311841205,1705450246854,-272.14447481,0.0002298,2]
[311841207,1705450246867,-854.93787505,0.0002298,2]
[311841208,1705450246885,-3273.59832813,0.0002298,2]
[311841213,1705450455622,493.77,0.00019909,2]
[311841214,1705450561068,7214.3205182,0.0003,120]
[311841215,1705450567947,156.22454558,0.00021914,2]
[311841216,1705450674323,173.79,0.0002172,2]
[311841217,1705450712153,836.37,0.0002179,2]
[311841218,1705450855907,223.44,0.0002196,2]
[311841219,1705450895949,457.15,0.00021669,2]
[311841220,1705450927571,469.08,0.00019792,2]
[311841221,1705450961826,156.4,0.00021872,2]
[311841222,1705451021319,2067.0,0.0002199,2]
[311841223,1705451038605,697.65794099,0.0002199,2]
[311841224,1705451047183,199.17071904,0.0002199,2]
[311841225,1705451057884,150.0,0.0002198,2]
[311841226,1705451149811,157.65,0.00021701,2]
[311841227,1705451151197,780.61,0.00021701,2]
[311841228,1705451168058,969.13,0.0003,90]
[311841229,1705451177153,2264.05,0.0003,90]
[311841230,1705451284168,204.0,0.00021268,2]
[311841233,1705451348977,634.28,0.00021699,2]
[311841243,1705451432341,-519.6705,0.0002201,2]
[311841244,1705451432353,-2808.52053668,0.0002201,2]
[311841245,1705451432362,-155.0,0.0002201,2]
[311841246,1705451432371,-730.49,0.00022011,2]
[311841247,1705451432381,-2701.21807698,0.00022012,2]
[311841248,1705451432390,-324.2270795,0.00022152,2]
[311841249,1705451432400,-92318.5992,0.00022153,2]
[311841250,1705451432409,-156.25996468,0.00022153,2]
[311841251,1705451432418,-2500.0,0.00022154,2]
[311841252,1705451432428,-1851.89168831,0.0002216,2]
[311841253,1705451432437,-327.45274585,0.0002216,2]
[311841254,1705451432446,-157.03,0.0002218,2]
[311841255,1705451432455,-499.99,0.0002218,2]
[311841256,1705451432465,-10496.4407031,0.00022253,2]
[311841257,1705451432474,-338.40757311,0.00022253,2]
[311841258,1705451432484,-155.0,0.00022254,2]
[311841259,1705451432493,-161210.99920904,0.00022254,2]
[311841260,1705451432502,-158.71685653,0.00022254,2]
[311841261,1705451432512,-157.11544536,0.00022255,2]
[311841262,1705451432522,-249.84044134,0.00022255,2]
[311841263,1705451432531,-155.0,0.00022255,2]
[311841264,1705451432540,-9494.3128,0.00022256,2]
[311841265,1705451432549,-100000.0,0.00022256,2]
[311841266,1705451432558,-632.23892056,0.0002226,2]
[311841267,1705451432568,-157.65,0.00022425,2]
[311841268,1705451432577,-5000.0,0.00022455,2]
[311841269,1705451432586,-780.61,0.0002268,2]
[311841270,1705451432595,-204.0,0.00022758,4]
[311841271,1705451432605,-2648.05848665,0.0002276,2]
[311841272,1705451432614,-160.0,0.00022766,2]
[311841273,1705451432623,-800.0,0.00022815,2]
[311841274,1705451432632,-800.0,0.00022815,2]
[311841276,1705451432641,-204.11287,0.00022815,2]
[311841278,1705451432651,-800.0,0.00022816,2]
[311841280,1705451432660,-169.01285531,0.0002288,2]
[311841281,1705451432670,-7706.37716917,0.0002288,2]
[311841283,1705451432679,-214.14018748,0.0002288,2]
[311841286,1705451432689,-2198.27396413,0.0002288,2]
[311841287,1705451432698,-151.28046956,0.000229,2]
[311841289,1705451432712,-55555.0,0.000229,2]
[311841291,1705451432721,-198.5184858,0.00022969,2]
[311841292,1705451432731,-1788.37312735,0.00022978,2]
[311841293,1705451432740,-274.69213419,0.00022978,2]
[311841294,1705451432750,-1576.0,0.00022979,2]
[311841295,1705451432759,-288.66708513,0.00022979,2]
[311841296,1705451432769,-551.37931886,0.00022979,2]
[311841297,1705451432778,-1000.0,0.00022979,2]
[311841298,1705451432789,-1000.0,0.00022979,2]
[311841299,1705451432799,-1000.0,0.00022979,2]
[311841300,1705451432808,-1000.0,0.00022979,2]
[311841301,1705451432817,-1000.0,0.00022979,2]
[311841302,1705451432826,-1000.0,0.00022979,2]
[311841303,1705451432836,-1000.0,0.00022979,2]
[311841304,1705451432845,-1000.0,0.00022979,2]
[311841305,1705451432854,-1000.0,0.00022979,2]
[311841306,1705451432864,-1000.0,0.00022979,2]
[311841307,1705451432873,-1000.0,0.00022979,2]
[311841308,1705451432882,-1000.0,0.00022979,2]
[311841309,1705451432892,-1000.0,0.00022979,2]
[311841310,1705451432901,-1000.0,0.00022979,2]
[311841311,1705451432910,-1000.0,0.00022979,2]
[311841312,1705451432920,-1000.0,0.00022979,2]
[311841313,1705451432930,-825.8404659,0.00022979,2]
[311841314,1705451432939,-598.0,0.00022979,2]
[311841315,1705451432949,-609807.86398449,0.0002298,2]
[311841316,1705451432962,-27566.10393694,0.0002298,2]
[311841317,1705451432974,-40541.6855547,0.0002298,2]
[311841318,1705451433015,-458.15882582,0.0002298,2]
[311841319,1705451433030,-636.83589575,0.0002298,2]
[311841320,1705451433041,-2766.65626921,0.0002298,2]
[311841321,1705451433053,-4162.30159469,0.0002298,2]
[311841322,1705451433065,-4289.41508,0.0002298,2]
[311841323,1705451433698,-528.87484806,0.0002298,2]
[311841324,1705451433712,-491.67029575,0.0002298,2]
[311841325,1705451433726,-391.73008624,0.0002298,2]
[311841326,1705451433750,-20217.6708785,0.0002298,2]
[311841327,1705451433762,-1228.72334286,0.0002298,2]
[311841328,1705451433773,-130062.66047544,0.0002298,2]
[311841351,1705451438187,-333.9614009,0.0002288,2]
[311841352,1705451438196,-24165.97831184,0.00022979,3]
[311841353,1705451438209,-6474.48993734,0.00022979,3]
[311841354,1705451438221,-25977.87309644,0.00022979,3]
[311841355,1705451438233,-50998.58633688,0.00022979,3]
[311841356,1705451438246,-29589.85563386,0.00022979,3]
[311841357,1705451438298,-4316.9166,0.00022979,3]
[311841358,1705451438310,-100225.99856076,0.00022979,3]
[311841359,1705451438331,-973.7821564,0.00022979,3]
[311841360,1705451438350,-6623.21186384,0.00022979,3]
[311841361,1705451438362,-28684.28110533,0.00022979,3]
[311841362,1705451438378,-2954.50588367,0.00022979,3]
[311841363,1705451438427,-474.27476,0.00022979,3]
[311841436,1705451440542,-2284.63781895,0.00022979,3]
[311841437,1705451440598,-350.0,0.00022979,3]
[311841438,1705451440609,-9496.0,0.00022979,3]
[311841439,1705451440658,-3526.1503252,0.00022979,3]
[311841440,1705451440669,-816.6477242,0.00022979,3]
[311841441,1705451440682,-47475.0,0.00022979,3]
[311841442,1705451441251,-999.62474896,0.0002288,2]
[311841443,1705451441261,-15502.98157847,0.00022979,3]
[311841446,1705451442729,445.62,0.00021333,2]
[311841448,1705451443113,-18137.20762502,0.00022979,3]
[311841449,1705451443125,-2718.17178528,0.00022979,3]
[311841450,1705451443228,-259.6599751,0.00022979,3]
[311841451,1705451443240,-1699.7016505,0.00022979,3]
[311841452,1705451443287,-640.8871353,0.00022979,3]
[311841453,1705451443300,-2512.84309114,0.00022979,3]
[311841454,1705451443312,-4110.99578267,0.00022979,3]
[311841464,1705451446322,-20296.8212,0.000229,2]
[311841465,1705451446331,-1065.15850354,0.00022978,2]
[311841466,1705451446341,-643.93913072,0.00022979,3]
[311841467,1705451446350,-382474.9518157,0.00022979,3]
[311841468,1705451446434,-3516.06945431,0.00022979,3]
[311841469,1705451463849,205.0,0.00021268,2]
[311841470,1705451641350,250.0,0.0002197,2]
[311841471,1705451676857,750.79,0.00021978,2]
[311841472,1705451681003,154.3,0.00021966,2]
[311841473,1705451882031,492.57,0.00021948,2]
[311841474,1705451903037,458.25,0.00020025,2]
[311841475,1705452127395,153.09,0.00021902,2]
[311841476,1705452156369,700.73,0.00021901,2]
[311841477,1705452295353,5547.24,0.00021802,2]
[311841478,1705452364210,204.0,0.00021248,2]
[311841479,1705452379727,435.33,0.00019885,2]
[311841480,1705452418451,605.94,0.00021801,2]
[311841481,1705452501315,-155.0,0.00021999,2]
[311841482,1705452501340,-300.0,0.00021999,2]
[311841483,1705452578132,75.0,0.00021999,2]
[311841484,1705452604113,654.01,0.00021801,2]
[311841485,1705452624389,170.67,0.00021801,2]
[311841530,1705452638925,-80.0,0.00021999,2]
[311841531,1705452638946,-19863.75057491,0.00022,2]
[311841532,1705452638967,-300.0,0.00022,2]
[311841533,1705452638997,-157.14,0.00022084,2]
[311841534,1705452639011,-435.33,0.00022149,2]
[311841535,1705452639030,-163.34641144,0.00022153,2]
[311841536,1705452639059,-163.34641144,0.00022154,2]
[311841537,1705452639093,-156.69,0.00022173,2]
[311841538,1705452639119,-157.14,0.00022328,2]
[311841539,1705452639144,-154.3,0.00022405,2]
[311841540,1705452639169,-157.14,0.00022572,2]
[311841541,1705452639194,-150.0,0.00022606,2]
[311841542,1705452639214,-150.0,0.00022666,2]
[311841543,1705452639234,-1465.1943,0.00022679,2]
[311841544,1705452639251,-1143.5656,0.00022679,2]
[311841545,1705452639275,-150.0,0.00022704,2]
[311841546,1705452639300,-150.0,0.00022704,2]
[311841547,1705452639329,-300.0,0.00022713,2]
[311841548,1705452639353,-214.48804093,0.00022713,2]
[311841550,1705452639382,-150.0,0.00022719,2]
[311841552,1705452639415,-150.0,0.00022728,2]
[311841553,1705452639436,-150.0,0.00022728,2]
[311841554,1705452639462,-150.0,0.00022732,2]
[311841555,1705452639486,-150.0,0.00022733,2]
[311841556,1705452639504,-1500.0,0.00022737,2]
[311841557,1705452639520,-150.0,0.00022741,2]
[311841558,1705452639542,-1500.0,0.00022741,2]
[311841559,1705452639567,-150.0,0.00022745,2]
[311841560,1705452639583,-169.34626625,0.00022745,2]
[311841561,1705452639603,-150.0,0.0002275,2]
[311841563,1705452639628,-150.0,0.0002275,2]
[311841565,1705452639654,-150.0,0.00022756,2]
[311841566,1705452639674,-150.0,0.00022768,2]
[311841569,1705452639699,-150.0,0.00022769,2]
[311841571,1705452639719,-648.19792819,0.00022772,3]
[311841573,1705452639744,-221.00264978,0.00022772,2]
[311841574,1705452639762,-150.0,0.00022775,2]
[311841576,1705452639780,-150.0,0.00022776,2]
[311841578,1705452639795,-150.0,0.00022777,2]
[311841580,1705452639807,-150.0,0.00022778,2]
[311841581,1705452639834,-2863.7354,0.00022779,2]
[311841582,1705452639852,-160.0,0.00022779,2]
[311841583,1705452639880,-654.01,0.00022779,2]
[311841584,1705452639903,-150.0,0.00022787,2]
[311841585,1705452639924,-150.0,0.00022792,2]
[311841586,1705452639942,-150.0,0.00022793,2]
[311841587,1705452639962,-150.0,0.00022796,2]
[311841588,1705452639993,-150.0,0.00022797,2]
[311841589,1705452640013,-159.83507652,0.00022801,2]
[311841590,1705452640046,-150.0,0.00022807,2]
[311841591,1705452640067,-150.0,0.00022812,2]
[311841592,1705452640082,-495.24543053,0.00022815,2]
[311841593,1705452640163,-304.75456947,0.00022815,2]
[311841594,1705452640190,-22.25830557,0.00022815,2]
[311841598,1705452640265,-1477.74169443,0.00022815,2]
[311841599,1705452640291,-300.0,0.00022816,2]
[311841600,1705452640313,-157.14,0.00022817,2]
[311841601,1705452640342,-150.0,0.00022818,2]
[311841602,1705452640369,-150.0,0.00022822,2]
[311841603,1705452640392,-150.0,0.00022825,2]
[311841604,1705452640409,-150.0,0.00022826,2]
[311841605,1705452640436,-300.0,0.00022827,2]
[311841606,1705452640463,-150.0,0.00022832,2]
[311841607,1705452640483,-150.0,0.00022832,2]
[311841608,1705452640503,-150.0,0.00022836,2]
[311841609,1705452640525,-150.0,0.00022842,2]
[311841610,1705452640545,-150.0,0.00022843,2]
[311841611,1705452640566,-150.0,0.00022844,2]
[311841612,1705452640591,-154.3,0.00022844,2]
[311841613,1705452640610,-150.0,0.00022847,2]
[311841614,1705452640634,-150.0,0.00022851,2]
[311841615,1705452640661,-101.63394557,0.00022854,2]
[311841616,1705452640684,-48.36605443,0.00022854,2]
[311841617,1705452640702,-150.0,0.00022857,2]
[311841618,1705452640722,-150.0,0.00022859,2]
[311841619,1705452640766,-5.26376504,0.00022861,2]
[311841620,1705452640787,-144.73623496,0.00022861,2]
[311841621,1705452640808,-150.0,0.00022861,2]
[311841622,1705452640827,-204.0,0.00022863,4]
[311841623,1705452640840,-150.0,0.00022864,2]
[311841624,1705452640871,-150.0,0.00022864,2]
[311841625,1705452640900,-150.0,0.00022869,2]
[311841626,1705452640920,-150.0,0.00022874,2]
[311841627,1705452640940,-357.44812795,0.00022875,2]
[311841628,1705452640996,-142.54187205,0.00022875,2]
[311841629,1705452641017,-7662.27776788,0.00022876,2]
[311841631,1705452641039,-411.68315571,0.00022876,2]
[311841634,1705452641064,-294.6387564,0.00022876,2]
[311841636,1705452641099,-378.24944133,0.00022876,2]
[311841639,1705452641119,-150.0,0.00022877,2]
[311841641,1705452641140,-224.17120298,0.00022877,2]
[311841642,1705452641156,-221.41381807,0.00022877,2]
[311841644,1705452641177,-69.29953766,0.00022878,2]
[311841647,1705452641207,-8408.18488638,0.00022878,2]
[311841649,1705452641233,-727.19,0.00022879,2]
[311841651,1705452641252,-100000.0,0.00022879,2]
[311841653,1705452641276,-5000.0,0.0002288,2]
[311841655,1705452641294,-150.0,0.0002288,2]
[311841657,1705452641314,-150.0,0.00022881,2]
[311841658,1705452641337,-150.0,0.00022883,2]
[311841660,1705452641355,-151.18818117,0.00022884,2]
[311841662,1705452641376,-150.0,0.00022884,2]
[311841664,1705452641399,-150.0,0.00022898,2]
[311841666,1705452641423,-723.71,0.000229,2]
[311841668,1705452641446,-7411.43118117,0.000229,2]
[311841670,1705452641462,-171.01942967,0.000229,2]
[311841671,1705452641489,-306.05897294,0.000229,2]
[311841674,1705452641512,-222.64093392,0.000229,2]
[311841676,1705452641543,-192.72616874,0.000229,2]
[311841678,1705452641566,-2169.58,0.000229,2]
[311841680,1705452641583,-1989.4728993,0.000229,2]
[311841682,1705452641602,-755.58379234,0.000229,2]
[311841684,1705452641622,-666.4164993,0.000229,2]
[311841686,1705452641643,-150.0,0.00022907,2]
[311841687,1705452641669,-150.0,0.00022908,2]
[311841689,1705452641690,-150.0,0.0002291,2]
[311841691,1705452641747,-150.0,0.00022913,2]
[311841693,1705452641772,-150.0,0.00022913,2]
[311841695,1705452641790,-150.0,0.00022914,2]
[311841697,1705452641816,-150.0,0.00022915,2]
[311841699,1705452641843,-150.0,0.00022919,2]
[311841701,1705452641871,-150.0,0.00022922,2]
[311841703,1705452641896,-150.0,0.00022922,2]
[311841705,1705452641914,-150.0,0.00022922,2]
[311841707,1705452641932,-150.0,0.00022925,2]
[311841709,1705452641958,-150.0,0.00022931,2]
[311841711,1705452641974,-150.0,0.00022932,2]
[311841713,1705452642001,-150.0,0.00022934,2]
[311841715,1705452642026,-300.0,0.00022934,2]
[311841717,1705452642048,-300.0,0.00022935,2]
[311841720,1705452642073,-150.0,0.00022936,2]
[311841722,1705452642091,-150.0,0.00022937,2]
[311841723,1705452642111,-150.0,0.00022943,2]
[311841725,1705452642137,-150.0,0.00022943,2]
[311841726,1705452642158,-300.0,0.00022946,2]
[311841727,1705452642177,-150.0,0.00022954,2]
[311841728,1705452642202,-150.0,0.00022956,2]
[311841729,1705452642223,-1500.0,0.00022956,2]
[311841730,1705452642248,-150.0,0.00022959,2]
[311841731,1705452642264,-150.0,0.00022959,2]
[311841732,1705452642298,-150.0,0.00022962,2]
[311841733,1705452642321,-150.0,0.00022964,2]
[311841734,1705452642347,-150.0,0.00022966,2]
[311841735,1705452642538,-300.0,0.00022966,2]
[311841736,1705452642552,-150.0,0.00022972,2]
[311841737,1705452642570,-1500.0,0.00022973,2]
[311841738,1705452642592,-174.21706797,0.00022975,2]
[311841739,1705452642610,-271.31354804,0.00022975,2]
[311841740,1705452642630,-515.20412514,0.00022975,2]
[311841741,1705452642652,-155.0,0.00022976,2]
[311841742,1705452642668,-1880.31898697,0.00022977,2]
[311841743,1705452642689,-33445.7049365,0.00022977,2]
[311841744,1705452642705,-201.6432844,0.00022977,2]
[311841745,1705452642735,-569.11560608,0.00022977,2]
[311841747,1705452643295,-155.66439392,0.00022977,2]
[311841748,1705452643318,-300.0,0.00022979,2]
[311841749,1705452643343,-44.32560608,0.0002298,2]
[311841763,1705452643604,-17207.44354265,0.0002298,2]
[311841783,1705452648065,-98465.34654303,0.0002298,2]
[311841784,1705452648083,-91561.56715429,0.0002298,2]
[311841785,1705452648102,-150.0,0.00022981,2]
[311841786,1705452648123,-537.42,0.00022997,2]
[311841787,1705452648148,-155.0,0.00022998,2]
[311841788,1705452648170,-256.98504056,0.00022998,2]
[311841789,1705452648191,-236.17727712,0.00022998,2]
[311841790,1705452648214,-1911.90313155,0.00022998,2]
[311841791,1705452648241,-2506.28525538,0.00022998,2]
[311841792,1705452648262,-234.89781562,0.00022998,2]
[311841793,1705452648282,-2675.76288624,0.00022998,3]
[311841794,1705452648309,-476.01994707,0.00022998,3]
[311841795,1705452648430,-368.49053833,0.00022998,3]
[311841796,1705452648736,-2047.55682602,0.00022998,3]